fUST/lending_fUST_20250527
["ID","MTS","AMOUNT","RATE_DAILY","PERIOD"]
[362467528,1748320244114,-430.0,0.00022669,2]
[362467529,1748320244125,-1032.62,0.00022669,2]
[362467530,1748320244135,-1235.64,0.00022671,2]
[362467531,1748320244144,-1816.22,0.00022671,2]
[362467532,1748320244154,-430.0,0.00022671,2]
[362467533,1748320244164,-792.51,0.00022671,2]
[362467534,1748320244175,-346.88671354,0.00022671,2]
[362467535,1748320244193,-559.65328646,0.00022671,2]
[362467536,1748320244203,-430.0,0.00022671,2]
[362467537,1748320244212,-452.75569905,0.00022671,2]
[362467538,1748320244222,-430.0,0.00022671,2]
[362467539,1748320244231,-430.0,0.00022671,2]
[362467540,1748320244242,-430.0,0.00022671,2]
[362467541,1748320244251,-455.06,0.00022671,2]
[362467542,1748320244261,-430.0,0.00022671,2]
[362467543,1748320244271,-430.0,0.00022671,2]
[362467544,1748320244280,-430.0,0.00022671,2]
[362467545,1748320244290,-430.0,0.00022671,2]
[362467546,1748320244300,-193.68222913,0.00022671,2]
[362467547,1748320244339,-236.31777087,0.00022671,2]
[362467548,1748320244348,-1083.85,0.00022671,2]
[362467549,1748320244358,-192.64907556,0.00022672,2]
[362467550,1748320244370,-237.35092444,0.00022672,2]
[362467551,1748320244379,-467.02,0.00022672,2]
[362467552,1748320244389,-306.62907556,0.00022672,2]
[362468007,1748320261046,262.7825074,0.00024657,120]
[362468010,1748320701095,2389653.6224774,0.00024658,120]
[362468012,1748321144103,-180.91974706,0.00018801,2]
[362468013,1748321144124,-300.0,0.0001938,2]
[362468014,1748321144145,-539.89,0.00019381,2]
[362468015,1748321144166,-430.0,0.00019381,2]
[362468016,1748321144186,-300.0,0.00019381,2]
[362468017,1748321144207,-1200.0,0.00019381,2]
[362468018,1748321144229,-430.0,0.00019382,2]
[362468019,1748321144251,-156.94862125,0.00019382,2]
[362468021,1748321183024,7023.48,0.00021918,30]
[362468022,1748321232093,-188.222855,0.00019233,2]
[362468023,1748321232117,-300.0,0.00019381,2]
[362468024,1748321232139,-240.0,0.00019382,2]
[362468025,1748321232163,-42.63278924,0.00019382,2]
[362468026,1748321236084,-266.608286,0.00018793,2]
[362468027,1748321236107,-387.36721076,0.00019382,2]
[362468028,1748321236130,-447.03456836,0.00019382,2]
[362468029,1748321236153,-307.170213,0.00019382,2]
[362468030,1748321236182,-122.829787,0.00019382,2]
[362468031,1748321236205,-430.0,0.00019382,2]
[362468032,1748321236226,-430.0,0.00019382,2]
[362468033,1748321236247,-32.02679775,0.00019382,2]
[362468034,1748321243125,-408.52923717,0.00019382,2]
[362468035,1748321243149,-430.0,0.00019382,2]
[362468036,1748321243172,-430.0,0.00019382,2]
[362468037,1748321243194,-430.0,0.00019382,2]
[362468038,1748321243216,-430.0,0.00019382,2]
[362468039,1748321243238,-430.0,0.00019382,2]
[362468040,1748321243261,-430.0,0.00019382,2]
[362468041,1748321243282,-430.0,0.00019382,2]
[362468042,1748321243303,-430.0,0.00019382,2]
[362468043,1748321243325,-525.15,0.00019382,2]
[362468044,1748321243346,-188.36077631,0.00019382,2]
[362468045,1748321243366,-430.0,0.00019382,2]
[362468046,1748321243387,-86.03933906,0.00019382,2]
[362468047,1748321251091,-182.70129114,0.00019382,2]
[362468048,1748321251321,-181.2593698,0.00019382,2]
[362468049,1748321251345,-430.0,0.00019382,2]
[362468050,1748321251368,-280.64370638,0.00019382,2]
[362468057,1748321355137,-149.35629362,0.00019382,2]
[362468058,1748321355159,-500.0,0.00019382,2]
[362468059,1748321355180,-160.95560078,0.00019644,2]
[362468060,1748321355204,-300.0,0.00019654,2]
[362468061,1748321355224,-72.12026056,0.00019655,2]
[362468062,1748321359842,151.0,0.0002191,30]
[362468149,1748321446112,-300.0,0.00019653,2]
[362468150,1748321446123,-281.16818167,0.00019654,2]
[362468154,1748321446224,-148.83181833,0.00019654,2]
[362468156,1748321446234,-430.0,0.00019654,2]
[362468158,1748321446244,-474.0,0.00019654,2]
[362468160,1748321446254,-473.29,0.00019654,2]
[362468162,1748321446263,-566.34,0.00019654,2]
[362468164,1748321446273,-174.88675193,0.00019655,2]
[362468166,1748321446283,-200.0,0.00019655,2]
[362468168,1748321446293,-430.0,0.00019655,2]
[362468170,1748321446302,-430.0,0.00019655,2]
[362468172,1748321446312,-437.55687434,0.00019655,2]
[362468174,1748321446321,-405.51665021,0.00019655,2]
[362468176,1748321446331,-430.0,0.00019655,2]
[362468178,1748321446342,-430.0,0.00019655,2]
[362468179,1748321446352,-430.0,0.00019655,2]
[362468181,1748321446362,-407.59634751,0.00019655,2]
[362468183,1748321446373,-430.0,0.00019655,2]
[362468187,1748321446383,-423.76920885,0.00019655,2]
[362468189,1748321446392,-292.77211131,0.00019655,2]
[362468190,1748321446406,-137.22788869,0.00019655,2]
[362468192,1748321446428,-430.0,0.00019655,2]
[362468193,1748321446439,-432.64371377,0.00019655,2]
[362468194,1748321446449,-430.0,0.00019655,2]
[362468195,1748321446459,-375.27253663,0.00019655,2]
[362468196,1748321446470,-430.0,0.00019655,2]
[362468197,1748321446480,-430.0,0.00019655,2]
[362468198,1748321446490,-506.17206728,0.00019655,2]
[362468199,1748321446500,-430.0,0.00019655,2]
[362468200,1748321446510,-430.0,0.00019655,2]
[362468201,1748321446520,-1091.9,0.00019655,2]
[362468202,1748321446533,-473.75,0.00019655,2]
[362468203,1748321446543,-430.0,0.00019655,2]
[362468204,1748321446553,-430.0,0.00019655,2]
[362468205,1748321446563,-513.78225483,0.00019655,2]
[362468206,1748321446574,-500.0,0.00019655,2]
[362468207,1748321446585,-307.38477701,0.00019655,2]
[362468208,1748321446596,-430.0,0.00019655,2]
[362468209,1748321446606,-430.0,0.00019655,2]
[362468210,1748321446616,-430.0,0.00019655,2]
[362468211,1748321446626,-47.14623274,0.00019655,2]
[362468222,1748322341113,-300.0,0.00017999,2]
[362468223,1748322341134,-300.0,0.00017999,2]
[362468224,1748322341156,-584.0,0.00017999,2]
[362468225,1748322341177,-300.0,0.00017999,2]
[362468226,1748322341199,-3168.08419822,0.00018,2]
[362468230,1748322425097,-1023.10550286,0.00018,2]
[362468231,1748322443080,-6064.16575636,0.00018,2]
[362468232,1748322443104,-6505.8219639,0.00018707,2]
[362468233,1748322443129,-972.36119556,0.00018764,2]
[362468235,1748322451086,-2657.52662044,0.00018764,2]
[362468236,1748322451108,-313.67103852,0.000189,2]
[362468237,1748322451138,-261.94026055,0.000189,2]
[362468238,1748322451161,-500.0,0.0001906,2]
[362468239,1748322451182,-208.80048717,0.0001906,2]
[362468240,1748322451217,-291.19951283,0.0001906,2]
[362468241,1748322451239,-500.0,0.0001906,2]
[362468242,1748322451263,-500.0,0.0001906,2]
[362468243,1748322451292,-500.0,0.0001906,2]
[362468244,1748322451316,-439.72126762,0.0001906,2]
[362468245,1748322451340,-500.0,0.0001906,2]
[362468246,1748322451364,-500.0,0.0001906,2]
[362468247,1748322451386,-509.89503127,0.0001906,2]
[362468248,1748322451411,-500.0,0.0001906,2]
[362468249,1748322451433,-500.0,0.0001906,2]
[362468250,1748322451454,-500.0,0.0001906,2]
[362468251,1748322451476,-317.54327031,0.0001906,2]
[362468252,1748322451499,-500.0,0.0001906,2]
[362468253,1748322451523,-500.0,0.0001906,2]
[362468254,1748322451548,-282.97555572,0.0001906,2]
[362468255,1748322451569,-500.0,0.0001906,2]
[362468256,1748322451592,-500.0,0.0001906,2]
[362468257,1748322451615,-500.0,0.0001906,2]
[362468258,1748322451642,-279.43983687,0.0001906,2]
[362468259,1748322451666,-500.0,0.0001906,2]
[362468260,1748322451690,-556.0065093,0.0001906,2]
[362468261,1748322451711,-1374.23199934,0.00019061,2]
[362468262,1748322455585,935.5447467,0.0002191,30]
[362468266,1748322547132,-9610.58558695,0.00018,2]
[362468267,1748322547160,-274.05012616,0.00018,2]
[362468268,1748322547180,-11037.9522433,0.0001844,2]
[362468269,1748322547200,-209.11402568,0.000189,2]
[362468272,1748322561436,-1468.9962085,0.00019129,2]
[362468273,1748322561460,-430.0,0.00019178,2]
[362468274,1748322561484,-471.48,0.00019178,2]
[362468275,1748322561506,-482.83717487,0.00019178,2]
[362468276,1748322561528,-430.0,0.00019178,2]
[362468277,1748322561553,-1071.63,0.00019178,2]
[362468278,1748322561577,-430.0,0.00019178,2]
[362468279,1748322561599,-188.222855,0.00019178,2]
[362468280,1748322561621,-634.0555483,0.0001921,2]
[362468281,1748322561646,-471.48,0.00019452,2]
[362468282,1748322561673,-1071.63,0.00019452,2]
[362468283,1748322561697,-403.96,0.00019452,2]
[362468284,1748322561720,-1728.31975129,0.00019452,2]
[362468285,1748322561744,-353.0,0.00019639,2]
[362468286,1748322561769,-339.55627881,0.00019651,2]
[362468287,1748322561791,-198.10839508,0.00019651,2]
[362468288,1748322561815,-201.94925226,0.00019651,2]
[362468289,1748322561838,-253.27109299,0.00019651,2]
[362468290,1748322561862,-430.0,0.00019651,2]
[362468291,1748322561885,-430.0,0.00019652,2]
[362468292,1748322561909,-155.6234429,0.00019652,2]
[362468337,1748322632180,-430.0,0.00019178,2]
[362468339,1748322632191,-432.19,0.00019178,2]
[362468341,1748322632200,-199.29455031,0.00019178,3]
[362468343,1748322632210,-369.35474238,0.00019452,2]
[362468346,1748322632225,-432.19,0.00019452,2]
[362468348,1748322632235,-430.0,0.00019651,2]
[362468350,1748322632246,-163.05690925,0.00019651,2]
[362468352,1748322632258,-266.94309075,0.00019651,2]
[362468354,1748322632269,-579.41,0.00019651,2]
[362468356,1748322632280,-430.0,0.00019652,2]
[362468358,1748322632290,-430.0,0.00019652,2]
[362468360,1748322632299,-430.0,0.00019652,2]
[362468362,1748322632309,-430.0,0.00019652,2]
[362468364,1748322632319,-515.84,0.00019652,2]
[362468366,1748322632328,-430.0,0.00019652,2]
[362468389,1748322632496,-430.0,0.00019652,2]
[362468391,1748322632507,-430.0,0.00019652,2]
[362468393,1748322632517,-362.76084175,0.00019652,2]
[362468395,1748322632533,-67.23915825,0.00019652,2]
[362468396,1748322632543,-430.0,0.00019652,2]
[362468397,1748322632553,-430.0,0.00019652,2]
[362468398,1748322632563,-430.0,0.00019652,2]
[362468399,1748322632572,-430.0,0.00019652,2]
[362468400,1748322632582,-430.0,0.00019652,2]
[362468401,1748322632591,-440.99112872,0.00019652,2]
[362468402,1748322632601,-273.05137875,0.00019654,2]
[362468403,1748322632611,-430.0,0.00019654,2]
[362468404,1748322632621,-301.12949521,0.00019654,2]
[362468405,1748322632633,-33.7701076,0.00019654,2]
[362468406,1748322632643,-475.16239462,0.00019654,2]
[362468407,1748322632652,-383.65942728,0.00019654,2]
[362468408,1748322632661,-244.9080705,0.00019654,2]
[362468409,1748322632673,-185.0919295,0.00019654,2]
[362468410,1748322632685,-430.0,0.00019654,2]
[362468411,1748322632696,-430.0,0.00019654,2]
[362468412,1748322632706,-430.0,0.00019654,2]
[362468413,1748322632716,-371.81367205,0.00019654,2]
[362468414,1748322632727,-430.0,0.00019654,2]
[362468415,1748322632737,-523.06,0.00019654,2]
[362468416,1748322632748,-430.0,0.00019654,2]
[362468417,1748322632758,-430.0,0.00019654,2]
[362468418,1748322632768,-430.0,0.00019654,2]
[362468419,1748322632778,-430.0,0.00019654,2]
[362468420,1748322632789,-430.0,0.00019654,2]
[362468421,1748322632802,-430.0,0.00019654,2]
[362468422,1748322632811,-430.0,0.00019654,2]
[362468423,1748322632821,-430.0,0.00019654,2]
[362468424,1748322632831,-430.0,0.00019654,2]
[362468425,1748322632841,-430.0,0.00019654,2]
[362468426,1748322632850,-213.75092444,0.00019654,2]
[362468427,1748322632860,-430.0,0.00019654,2]
[362468428,1748322632869,-514.69,0.00019654,2]
[362468429,1748322632879,-430.0,0.00019654,2]
[362468430,1748322632889,-475.56163731,0.00019655,2]
[362468431,1748322632898,-500.0,0.00019655,2]
[362468432,1748322632907,-430.0,0.00019655,2]
[362468433,1748322632917,-302.0,0.00019655,2]
[362468434,1748322632926,-430.0,0.00019655,2]
[362468435,1748322632936,-430.0,0.00019655,2]
[362468436,1748322632947,-430.0,0.00019655,2]
[362468437,1748322632957,-430.0,0.00019655,2]
[362468438,1748322632967,-1071.63,0.00019726,2]
[362468439,1748322632976,-432.19,0.00019726,2]
[362468440,1748322632986,-25.46026047,0.000199,2]
[362468448,1748322638000,-430.0,0.00019925,2]
[362468449,1748322638010,-579.41,0.00019925,2]
[362468450,1748322638023,-430.0,0.00019926,2]
[362468451,1748322638032,-430.0,0.00019926,2]
[362468452,1748322638042,-430.0,0.00019926,2]
[362468453,1748322638051,-262.20976784,0.00019926,2]
[362468454,1748322638062,-430.0,0.00019926,2]
[362468455,1748322638072,-190.55,0.00019928,2]
[362468456,1748322638081,-430.0,0.00019928,2]
[362468457,1748322638092,-430.0,0.00019928,2]
[362468458,1748322638102,-430.0,0.00019928,2]
[362468459,1748322638111,-184.18,0.00019928,2]
[362468460,1748322638121,-430.0,0.00019928,2]
[362468461,1748322638131,-430.0,0.00019928,2]
[362468462,1748322638141,-26.58435239,0.00019928,2]
[362468463,1748322638153,-403.41564761,0.00019928,2]
[362468464,1748322638162,-430.0,0.00019928,2]
[362468465,1748322638171,-430.0,0.00019928,2]
[362468466,1748322638182,-514.69,0.00019928,2]
[362468467,1748322638191,-594.76382951,0.00019929,2]
[362468468,1748322638200,-430.0,0.00019929,2]
[362468469,1748322638210,-430.0,0.00019929,2]
[362468470,1748322638219,-430.0,0.00019929,2]
[362468471,1748322638230,-430.0,0.00019929,2]
[362468472,1748322638239,-158.31,0.0002,2]
[362468473,1748322638249,-1071.63,0.0002,2]
[362468474,1748322638259,-432.19,0.0002,2]
[362468475,1748322638268,-451.13181239,0.00020199,2]
[362468476,1748322638279,-579.41,0.00020199,2]
[362468477,1748322638288,-430.0,0.000202,2]
[362468478,1748322638298,-430.0,0.000202,2]
[362468479,1748322638307,-430.0,0.000202,2]
[362468480,1748322638317,-196.51,0.000202,2]
[362468481,1748322638326,-430.0,0.00020202,2]
[362468482,1748322638336,-284.55,0.00020202,2]
[362468483,1748322638347,-430.0,0.00020202,2]
[362468484,1748322638357,-430.0,0.00020202,2]
[362468485,1748322638366,-430.0,0.00020202,2]
[362468486,1748322638376,-430.0,0.00020202,2]
[362468487,1748322638385,-430.0,0.00020202,2]
[362468488,1748322638395,-430.0,0.00020202,2]
[362468489,1748322638406,-514.69,0.00020202,2]
[362468490,1748322638416,-430.0,0.00020203,2]
[362468491,1748322638425,-430.0,0.00020203,2]
[362468492,1748322638435,-430.0,0.00020203,2]
[362468493,1748322638444,-1071.63,0.00020273,2]
[362468494,1748322638454,-432.19,0.00020273,2]
[362468495,1748322638464,-191.85106664,0.00020292,2]
[362468496,1748322638473,-301.00744875,0.00020292,2]
[362468497,1748322638482,-5828.9558855,0.00020293,2]
[362469213,1748322911190,1000.0,0.00021,30]
[362469216,1748323268652,-160.0,0.00016438,3]
[362469217,1748323268679,-218.67958536,0.00018438,2]
[362469218,1748323268701,-121.32041464,0.00018521,2]
[362469219,1748323289791,-500.0,0.00018521,2]
[362469220,1748323291051,-500.0,0.00018521,2]
[362469221,1748323307805,-400.0,0.00018459,2]
[362469222,1748323332061,-300.0,0.00018458,2]
[362469223,1748323332084,-4450.0,0.00018459,2]
[362469226,1748323549105,-159.0,0.00016438,3]
[362469227,1748323549126,-218.67958536,0.00018358,2]
[362469228,1748323549147,-347.65,0.00018421,10]
[362469229,1748323549170,-820.93992664,0.00018457,2]
[362469230,1748323554087,-379.06007336,0.00018457,2]
[362469232,1748323554109,-300.0,0.00018458,2]
[362469233,1748323554131,-22.33179346,0.00018458,2]
[362469235,1748323591691,212.4396486,0.00013699,2]
[362469237,1748323631096,-218.67958534,0.00018358,2]
[362469238,1748323631123,-114.07394353,0.00018458,2]
[362469239,1748323640084,-163.59426301,0.00018458,2]
[362469240,1748323640106,-300.0,0.00018458,2]
[362469241,1748323640127,-300.0,0.00018458,2]
[362469242,1748323640149,-300.0,0.00018458,2]
[362469243,1748323640171,-300.0,0.00018458,2]
[362469244,1748323640192,-6682.64661668,0.00018459,2]
[362469245,1748323640221,-8039.12011368,0.00018459,2]
[362469246,1748323644087,-5328.23326964,0.00018459,2]
[362469247,1748323644109,-224.99301087,0.00018521,2]
[362469248,1748323644131,-500.0,0.00018537,2]
[362469249,1748323644153,-500.0,0.00018537,2]
[362469250,1748323644178,-500.0,0.00018537,2]
[362469251,1748323644200,-278.6683583,0.00018537,2]
[362469253,1748323648090,-221.3316417,0.00018537,2]
[362469254,1748323648111,-500.0,0.00018537,2]
[362469255,1748323648132,-500.0,0.00018537,2]
[362469256,1748323648152,-500.0,0.00018537,2]
[362469257,1748323648172,-500.0,0.00018537,2]
[362469258,1748323648195,-313.34255075,0.00018537,2]
[362469265,1748323700314,-300.0,0.00018536,2]
[362469266,1748323700340,-186.65744925,0.00018537,2]
[362469267,1748323700364,-500.0,0.00018537,2]
[362469268,1748323700387,-500.0,0.00018537,2]
[362469269,1748323700409,-383.61669435,0.00018537,2]
[362469270,1748323700431,-500.0,0.00018537,2]
[362469271,1748323700458,-500.0,0.00018537,2]
[362469272,1748323700631,-637.72946638,0.00018537,2]
[362469273,1748323700658,-414.59588258,0.00018537,2]
[362469274,1748323700685,-500.0,0.00018537,2]
[362469275,1748323700709,-500.0,0.00018537,2]
[362469276,1748323700732,-467.79725854,0.00018537,2]
[362469277,1748323700756,-500.0,0.00018537,2]
[362469278,1748323700782,-500.0,0.00018537,2]
[362469279,1748323700805,-458.42085987,0.00018537,2]
[362469280,1748323700828,-500.0,0.00018537,2]
[362469281,1748323700852,-500.0,0.00018537,2]
[362469282,1748323700877,-500.0,0.00018537,2]
[362469283,1748323700902,-500.0,0.00018537,2]
[362469284,1748323700928,-500.0,0.00018537,2]
[362469285,1748323700953,-500.0,0.00018537,2]
[362469286,1748323700978,-500.0,0.00018537,2]
[362469287,1748323701001,-500.0,0.00018537,2]
[362469288,1748323701027,-564.44168748,0.00018537,2]
[362469289,1748323701052,-500.0,0.00018537,2]
[362469290,1748323701077,-500.0,0.00018537,2]
[362469291,1748323701101,-500.0,0.00018537,2]
[362469292,1748323701126,-500.0,0.00018537,2]
[362469293,1748323701150,-500.0,0.00018537,2]
[362469294,1748323701175,-500.0,0.00018537,2]
[362469295,1748323701197,-500.0,0.00018537,2]
[362469296,1748323701220,-650.0,0.00018537,2]
[362469297,1748323701243,-500.0,0.00018537,2]
[362469298,1748323701267,-500.0,0.00018537,2]
[362469299,1748323701290,-500.0,0.00018537,2]
[362469300,1748323701313,-500.0,0.00018537,2]
[362469301,1748323701336,-603.5309265,0.00018537,2]
[362469302,1748323701358,-872.595555,0.00018538,2]
[362469303,1748323701380,-276.75364881,0.000189,2]
[362469304,1748323701402,-574.13850101,0.00019177,2]
[362469305,1748323701426,-500.0,0.00019177,2]
[362469306,1748323701451,-371.5861417,0.00019177,2]
[362469307,1748323701477,-500.0,0.00019177,2]
[362469308,1748323701499,-465.39897047,0.00019178,2]
[362469309,1748323701522,-430.0,0.00019178,2]
[362469310,1748323701560,-402.1124176,0.00019178,2]
[362469311,1748323701586,-430.0,0.00019178,2]
[362469312,1748323701610,-430.0,0.00019178,2]
[362469313,1748323701635,-434.94,0.00019178,2]
[362469314,1748323701660,-430.0,0.00019178,2]
[362469315,1748323701684,-540.0,0.00019178,2]
[362469316,1748323701708,-430.0,0.00019178,2]
[362469317,1748323701732,-430.0,0.00019178,2]
[362469318,1748323701756,-546.97477883,0.00019178,2]
[362469319,1748323701779,-472.12814731,0.00019178,2]
[362469320,1748323701805,-1412.96,0.00019178,2]
[362469321,1748323701832,-1615.41,0.00019178,2]
[362469322,1748323701859,-405.49998013,0.00019178,2]
[362469323,1748323701884,-362.71163419,0.00019178,2]
[362469327,1748323732155,-29500.0,0.00018149,2]
[362469328,1748323746083,-300.0,0.00018148,2]
[362469329,1748323746106,-12363.08243708,0.00018149,2]
[362469330,1748323751091,-6774.25267459,0.00018149,2]
[362469331,1748323755091,-58798.17330397,0.00018149,2]
[362469332,1748323766147,-234.38111457,0.00018149,2]
[362469333,1748323768108,-852.53703314,0.00018149,2]
[362469334,1748323768138,-22.95404226,0.00018149,2]
[362469335,1748323768162,-184.50243254,0.000189,2]
[362469336,1748323768186,-218.67958534,0.00019078,2]
[362469337,1748323768212,-67.28836581,0.00019178,2]
[362469338,1748323768236,-315.63867083,0.00019178,2]
[362469372,1748323832255,-1121.32041464,0.00019161,2]
[362469374,1748323832265,-300.0,0.00019177,2]
[362469376,1748323832275,-300.0,0.00019177,2]
[362469378,1748323832285,-1200.0,0.00019177,2]
[362469381,1748323832299,-114.36132917,0.00019178,2]
[362469383,1748323832308,-430.0,0.00019178,2]
[362469385,1748323832318,-430.0,0.00019178,2]
[362469387,1748323832328,-994.47,0.00019178,2]
[362469389,1748323832337,-430.0,0.00019178,2]
[362469391,1748323832347,-2560.66,0.00019178,2]
[362469392,1748323832356,-1213.58,0.00019178,2]
[362469393,1748323832366,-430.0,0.00019178,2]
[362469394,1748323832376,-430.0,0.00019178,2]
[362469395,1748323832385,-430.0,0.00019178,2]
[362469396,1748323832395,-430.0,0.00019178,2]
[362469397,1748323832404,-430.0,0.00019178,2]
[362469398,1748323832414,-430.0,0.00019178,2]
[362469399,1748323832423,-430.0,0.00019178,2]
[362469400,1748323832433,-430.0,0.00019178,2]
[362469401,1748323832443,-430.0,0.00019178,2]
[362469402,1748323832452,-430.0,0.00019178,2]
[362469403,1748323832462,-430.0,0.00019178,2]
[362469404,1748323832471,-430.0,0.00019178,2]
[362469405,1748323832481,-430.0,0.00019178,2]
[362469406,1748323832492,-430.0,0.00019178,2]
[362469407,1748323832503,-430.0,0.00019178,2]
[362469408,1748323832513,-430.0,0.00019178,2]
[362469409,1748323832523,-430.0,0.00019178,2]
[362469410,1748323832533,-430.0,0.00019178,2]
[362469411,1748323832543,-430.0,0.00019178,2]
[362469412,1748323832553,-430.0,0.00019178,2]
[362469413,1748323832562,-430.0,0.00019178,2]
[362469414,1748323832573,-1376.34,0.00019178,2]
[362469415,1748323832583,-430.0,0.00019178,2]
[362469416,1748323832593,-430.0,0.00019451,2]
[362469417,1748323832602,-273.15787332,0.00019451,2]
[362469418,1748323832612,-618.27129861,0.00019451,2]
[362469419,1748323832621,-500.0,0.00019451,2]
[362469420,1748323832631,-350.0,0.00019451,2]
[362469421,1748323832641,-178.17010294,0.00019451,2]
[362469422,1748323832651,-1615.41,0.00019452,2]
[362469423,1748323832660,-430.0,0.00019452,2]
[362469424,1748323832669,-430.0,0.00019452,2]
[362469425,1748323832679,-406.60299656,0.00019452,2]
[362469426,1748323832688,-430.0,0.00019452,2]
[362469427,1748323832697,-994.47,0.00019452,2]
[362469428,1748323832707,-430.0,0.00019452,2]
[362469429,1748323832718,-2560.66,0.00019452,2]
[362469430,1748323832727,-1213.58,0.00019452,2]
[362469431,1748323832737,-430.0,0.00019452,2]
[362469432,1748323832746,-430.0,0.00019452,2]
[362469433,1748323832756,-430.0,0.00019452,2]
[362469434,1748323832765,-430.0,0.00019452,2]
[362469435,1748323832775,-430.0,0.00019452,2]
[362469436,1748323832785,-430.0,0.00019452,2]
[362469437,1748323832795,-430.0,0.00019452,2]
[362469438,1748323832805,-430.0,0.00019452,2]
[362469439,1748323832819,-430.0,0.00019452,2]
[362469440,1748323832829,-430.0,0.00019452,2]
[362469441,1748323832838,-430.0,0.00019452,2]
[362469442,1748323832848,-430.0,0.00019452,2]
[362469443,1748323832858,-430.0,0.00019452,2]
[362469444,1748323832868,-430.0,0.00019452,2]
[362469445,1748323832877,-439.90100698,0.00019452,2]
[362469446,1748323832889,-430.0,0.00019452,2]
[362469447,1748323832899,-430.0,0.00019452,2]
[362469448,1748323832913,-430.0,0.00019452,2]
[362469449,1748323832925,-430.0,0.00019452,2]
[362469450,1748323832934,-430.0,0.00019452,2]
[362469451,1748323832944,-430.0,0.00019452,2]
[362469452,1748323832953,-1376.34,0.00019452,2]
[362469453,1748323832962,-430.0,0.00019452,2]
[362469454,1748323832972,-500.0,0.00019452,2]
[362469455,1748323832982,-1165.76070013,0.00019552,2]
[362469456,1748323832991,-401.89695071,0.00019647,2]
[362469457,1748323833001,-500.0,0.00019647,2]
[362469458,1748323833011,-283.84998609,0.00019647,2]
[362469459,1748323833022,-460.11029919,0.00019647,2]
[362469460,1748323833032,-430.0,0.00019648,2]
[362469461,1748323833041,-430.0,0.00019648,2]
[362469462,1748323833051,-431.49889378,0.00019648,2]
[362469463,1748323833061,-400.0,0.00019648,2]
[362469464,1748323833070,-474.20354946,0.00019648,2]
[362469465,1748323833080,-558.48076791,0.00019648,2]
[362469466,1748323833089,-430.0,0.00019648,2]
[362469467,1748323833099,-423.77912875,0.00019648,2]
[362469468,1748323833110,-430.0,0.00019648,2]
[362469469,1748323833119,-430.0,0.00019648,2]
[362469470,1748323833129,-430.0,0.00019648,2]
[362469471,1748323833139,-430.0,0.00019648,2]
[362469472,1748323833148,-450.0,0.00019648,2]
[362469473,1748323833158,-430.0,0.00019648,2]
[362469474,1748323833168,-430.0,0.00019648,2]
[362469475,1748323833178,-453.95,0.00019648,2]
[362469476,1748323833188,-450.0,0.00019648,2]
[362469477,1748323833198,-500.0,0.00019648,2]
[362469478,1748323833208,-430.0,0.00019648,2]
[362469479,1748323833217,-430.0,0.00019648,2]
[362469480,1748323833227,-430.0,0.00019648,2]
[362469481,1748323833237,-457.51912785,0.00019648,2]
[362469482,1748323833246,-316.32705389,0.00019648,2]
[362469483,1748323833256,-430.0,0.00019648,2]
[362469484,1748323833266,-245.49934425,0.00019648,2]